Cogmind - Beta 13 @@@ ROGUE MODE // 2024.05.14 @ 15:57:15 Player: Barbarossa Result: Destroyed by B-86 Titan with Hardcell Cannon Performance ------------- Evolutions (7) 3500 Regions Visited (11) 2200 Robots Destroyed (68) 340 Value Destroyed (2082) 2082 Prototype IDs (8) 160 Alien Tech Used (0) 0 Bonus (343) 343 TOTAL SCORE: 8625 Bonus ------- High Alert Combat Kills 75 Follower Combat Kills 268 Cogmind --------- Core Integrity 0/1300 Matter 167/300 Energy 6/100 System Corruption 0% Temperature Cool (13) Movement Core (150) Ox2 Location -3/Research Parts ------- > --- POWER (2) -------- (None) > --- PROPULSION (6) --- (None) > --- UTILITY (9) ------ Improved Signal Interpreter Advanced Target Analyzer > --- WEAPON (4) ------- Compact HERF Cannon > --- INVENTORY (5) ---- Experimental Matter Compressor (500) Experimental Matter Compressor (500) Advanced System Shield Improved System Restoration Module Peak State ------------ > --- POWER ------------ Light Nuclear Core Light Nuclear Core > --- PROPULSION ------- Centrium Wheel VTOL Module Field Propulsion Array Field Propulsion Array > --- UTILITY ---------- Advanced Heat Sink Advanced Heat Sink Improved Signal Interpreter Precision Matter Filter Improved Propulsion Shielding > --- WEAPON ----------- Heavy Beamcaster KE Penetrator KE Penetrator > --- INVENTORY -------- Neutrino Core Experimental Matter Compressor Experimental Matter Compressor Improved System Restoration Module Enhanced Gauss Cannon [Rating: 87] Favorites ----------- Power Light Nuclear Core Engine Light Ion Engine Power Core Light Nuclear Core Reactor Antimatter Reactor Propulsion Cesium-ion Thruster Leg Aluminum Leg Wheel Armored Wheel Hover Unit Hover Unit Flight Unit Cesium-ion Thruster Utility Hacking Suite Device Improved Heat Sink Storage Medium Storage Unit Processor Improved Signal Interpreter Hackware Hacking Suite Protection Improved Propulsion Shielding Weapon Spread Laser Energy Gun Spread Laser Energy Cannon HERF Cannon Ballistic Gun Improved Assault Rifle Ballistic Cannon Enhanced Gauss Cannon Special Weapon Plasma Cutter Special Melee Weapon Advanced Datajack Build | -11 -10 -9 -8 -7 -6 -5 -5 -5 -4 -4 -3 ------- Run | Yrd Mat Mat Mat Fac Fac Fac Upp Upp Fac Ext Res Slots Evolved 14 | . . 2 2 2 2 2 . . 2 . 2 Power 1 | . . . . . 1 . . . . . . Propulsion 4 | . . 2 . 1 1 . . . . . . Utility 7 | . . . 2 1 . 2 . . . . 2 Weapon 2 | . . . . . . . . . 2 . . Parts Attached 138 | . 11 21 20 1 15 11 6 2 16 28 7 Power 22 | . 1 2 3 . 2 1 1 1 2 8 1 Engine 4 | . 1 2 1 . . . . . . . . Core 16 | . . . 2 . 2 1 1 1 2 6 1 Reactor 2 | . . . . . . . . . . 2 . Propulsion 44 | . 4 12 7 1 6 5 1 . 3 3 2 Treads . | . . . . . . . . . . . . Leg . | . . . . . . . . . . . . Wheel 8 | . . 2 2 . . . . . 1 2 1 Hover 15 | . 4 10 . . . . . . . . 1 Flight 21 | . . . 5 1 6 5 1 . 2 1 . Utility 39 | . 1 3 7 . 2 4 4 1 7 8 2 Device 21 | . 1 . 3 . 2 3 2 . 4 6 . Storage 7 | . . 2 1 . . . . 1 1 2 . Processor 6 | . . 1 1 . . 1 1 . . . 2 Hackware 2 | . . . 1 . . . 1 . . . . Protection 3 | . . . 1 . . . . . 2 . . Artifact . | . . . . . . . . . . . . Weapon 33 | . 5 4 3 . 5 1 . . 4 9 2 Energy Gun 14 | . 5 3 1 . 2 . . . 1 1 1 Energy Cannon 5 | . . . . . 2 1 . . . 1 1 Ballistic Gun 5 | . . 1 1 . . . . . . 3 . Ballistic Cannon 5 | . . . . . . . . . 3 2 . Launcher . | . . . . . . . . . . . . Special Weapon 3 | . . . 1 . 1 . . . . 1 . Impact Weapon . | . . . . . . . . . . . . Slashing Weapon . | . . . . . . . . . . . . Piercing Weapon . | . . . . . . . . . . . . Special Melee Weapon 1 | . . . . . . . . . . 1 . Unidentified Prototypes 8 | . . 3 . . 1 . . . 3 1 . Parts Lost 68 | . 1 7 5 . 1 15 5 . 8 11 15 Power 12 | . . 1 1 . . 2 1 . . 4 3 Propulsion 24 | . 1 6 2 . . 5 3 . 1 3 3 Utility 21 | . . . 1 . . 6 1 . 6 3 4 Weapon 11 | . . . 1 . 1 2 . . 1 1 5 Highest Loss Streak 14 | . 1 2 3 . 1 14 4 . 5 7 14 To Critical Strikes . | . . . . . . . . . . . . Average Slot Usage (%) 70 | . 83 91 86 92 96 66 48 25 30 48 32 Engine 3 | . 14 8 5 . . . . . . . . Core 4 | . . . 2 7 13 6 3 1 3 7 . Wheel 3 | . . 1 15 . . . . . . 1 5 Hover 9 | . 19 36 4 . . . . . . . . Flight 12 | . . . 8 38 39 23 20 5 7 10 . Device 7 | . 1 9 7 7 12 14 4 5 2 5 6 Storage 6 | . 14 11 9 7 6 5 5 . 3 2 . Processor 3 | . . 1 2 7 6 3 3 5 5 5 4 Hackware 3 | . . . 7 7 6 5 8 5 3 . . Protection 1 | . . . 6 . . . . . 2 5 . Energy Gun 6 | . 15 14 9 7 5 2 . . 1 2 . Ballistic Gun 3 | . 12 7 6 . . . . . . 2 . Naked Turns . | . . . . . . . . . . . . Heaviest Build 59 | 14 14 20 30 20 37 32 26 12 28 59 59 Greatest Support 36 | 20 20 24 36 25 31 31 28 5 30 34 32 Greatest Overweight (x) 10 | . 1 3 5 . 1 3 1 2 1 10 3 Average Overweight (x) . | . . . . . . . . . . . . Largest Inventory Capacity 10 | . 8 10 10 10 10 10 10 5 5 5 5 Average Capacity 8 | . 8 9 10 10 10 10 9 5 5 5 5 Most Carried 10 | . 8 10 10 9 10 10 10 5 5 5 5 Average Carried 7 | . 7 8 8 9 9 8 7 4 4 4 4 Final Capacity 10 | 8 8 10 10 10 10 10 5 5 5 5 5 Final Carried 10 | 6 7 10 10 9 10 6 5 5 5 5 4 Class Distribution -------------------- 55% | Mutant 18% | Sprinter 8% | Scavenger-Sprinter 8% | Hacker-Sprinter Dominant Class ---------------- Mutant | -10/Materials Mutant | -9/Materials Mutant | -8/Materials Mutant | -7/Factory Sprinter | -6/Factory Sprinter | -5/Factory Hacker-Sprinter | -5/Upper Caves Mutant | -5/Upper Caves Mutant | -4/Factory Mutant | -4/Extension Mutant | -3/Research Resources | -11 -10 -9 -8 -7 -6 -5 -5 -5 -4 -4 -3 ----------- Run | Yrd Mat Mat Mat Fac Fac Fac Upp Upp Fac Ext Res Matter Collected 2334 | 180 88 368 134 . 365 115 70 20 118 850 26 Remotely . | . . . . . . . . . . . . Salvage Created 2412 | . 175 1065 453 . 352 46 . . 157 164 . Parts 134 | . 8 69 26 . 16 5 . . 4 6 . Haulers Intercepted 6 | . . 3 1 . 1 . . . 1 . . Recyclers Shooed 1 | . 1 . . . . . . . . . . Parts Field Recycled . | . . . . . . . . . . . . Retrieved Matter . | . . . . . . . . . . . . Parts Self-Destructed . | . . . . . . . . . . . . Prevented 3 | . . . . . . . 3 . . . . Kills | -11 -10 -9 -8 -7 -6 -5 -5 -5 -4 -4 -3 ------- Run | Yrd Mat Mat Mat Fac Fac Fac Upp Upp Fac Ext Res Combat Hostiles Destroyed 45 | . 4 22 9 . 1 2 . . 3 4 . Guns 36 | . 4 22 9 . 1 . . . . . . Cannons 8 | . . . . . . 2 . . 2 4 . AOE 1 | . . . . . . . . . 1 . . Classes Destroyed 11 | . 2 7 . . 2 . . . . . . Worker 3 | . . . . . 3 . . . . . . Builder 3 | . . 1 . . 2 . . . . . . Hauler 6 | . . 3 1 . 1 . . . 1 . . Recycler 3 | . . 1 . . 2 . . . . . . Operator 3 | . 1 1 1 . . . . . . . . Watcher 5 | . . 2 2 . 1 . . . . . . Swarmer 11 | . . 3 3 . . 2 . . 1 2 . Grunt 23 | . 4 12 5 . . . . . 2 . . Brawler 3 | . . 2 1 . . . . . . . . Sentry 7 | . . 5 . . . . . . . 2 . Programmer 1 | . . . . . 1 . . . . . . Best Kill Streak 7 | . 2 7 6 . 6 2 . . 4 2 . Combat Bots Only 7 | . 2 7 6 . 1 2 . . 3 2 . Max Kills in Single Turn 5 | . 1 1 2 . 5 1 . . 1 1 . Gunslinging . | . . . . . . . . . . . . Exploded 1 | . . . . . . . . . 1 . . Melee . | . . . . . . . . . . . . Uniques/NPCs Destroyed . | . . . . . . . . . . . . Combat | -11 -10 -9 -8 -7 -6 -5 -5 -5 -4 -4 -3 -------- Run | Yrd Mat Mat Mat Fac Fac Fac Upp Upp Fac Ext Res Hostile Shots Fired 757 | . 25 78 33 . 75 140 73 6 96 73 158 Missed 303 | . 5 23 9 . 48 49 42 4 42 25 56 Damage Taken 8670 | . 264 663 380 . 279 1474 513 39 1270 1318 2470 Core 3550 | . 64 99 15 . 57 601 251 39 590 517 1317 Absorbed by Shields 16 | . . . . . . . . . 16 . . Redirected to Shielding 210 | . . . . . . . . . 82 128 . Regen/Repaired (Parts) 125 | . . 41 84 . . . . . . . . Core Remaining (%) 69 | 100 74 75 97 100 93 . . 10 . 3 . Volleys Fired 212 | . 20 57 43 . 34 10 . . 15 21 12 Largest 3 | . 2 2 2 . 2 1 . . 1 3 2 Hottest 178 | . 60 130 79 . 178 113 . . 63 147 153 Shots Fired 334 | . 40 112 64 . 38 10 . . 15 34 21 Gun 273 | . 40 112 64 . 34 . . . 1 22 . Cannon 61 | . . . . . 4 10 . . 14 12 21 Launcher . | . . . . . . . . . . . . Special . | . . . . . . . . . . . . Kinetic 129 | . 20 37 23 . . . . . 14 24 11 Thermal 195 | . 20 75 41 . 38 10 . . 1 10 . Explosive . | . . . . . . . . . . . . Electromagnetic 10 | . . . . . . . . . . . 10 Robot Hit Streak 15 | . 7 15 8 . 13 2 . . 6 8 10 Robot Miss Streak 7 | . 2 6 4 . 4 5 . . 7 1 1 Penetration Max 1 | . . . . . . . . . . 1 . Secondary Targets 3 | . . 3 . . . . . . . . . Max Gunslinging Chain 1 | . . 1 . . . . . . . . . Shots Hit Robots 233 | . 26 86 42 . 36 2 . . 8 16 17 Core Hits 186 | . 13 79 20 . 55 2 . . 6 8 3 Critical Kills . | . . . . . . . . . . . . Critical Parts Destroyed . | . . . . . . . . . . . . Critical Strikes 9 | . . 3 2 . . . . . 3 1 . Burn 5 | . . 3 2 . . . . . . . . Blast 4 | . . . . . . . . . 3 1 . Melee Attacks . | . . . . . . . . . . . . Impact . | . . . . . . . . . . . . Slashing . | . . . . . . . . . . . . Piercing . | . . . . . . . . . . . . Sneak Attacks . | . . . . . . . . . . . . Combat Hostiles . | . . . . . . . . . . . . Follow-up Attacks . | . . . . . . . . . . . . Damage Inflicted 5616 | . 317 1373 1063 . 1160 118 . . 492 481 612 Guns 3153 | . 317 1373 703 . 571 . . . . 189 . Cannons 1405 | . . . . . 120 118 . . 319 236 612 Explosions 993 | . . . 360 . 462 . . . 171 . . Melee . | . . . . . . . . . . . . Ramming 65 | . . . . . 7 . . . 2 56 . Kinetic 1742 | . 127 378 160 . . . . . 319 381 377 Thermal 3574 | . 190 995 903 . 1153 118 . . 171 44 . Explosive . | . . . . . . . . . . . . Electromagnetic 235 | . . . . . . . . . . . 235 Impact . | . . . . . . . . . . . . Slashing . | . . . . . . . . . . . . Piercing . | . . . . . . . . . . . . Highest Corruption 2 | . . . 2 . . . . . . . . Average Corruption 2 | . . . 2 . . . . . . . . Corruption Purged . | . . . . . . . . . . . . Corruption Blocked . | . . . . . . . . . . . . Effects 2 | . . . 2 . . . . . . . . Matter Fused 1 | . . . 1 . . . . . . . . Energy Discharges 1 | . . . 1 . . . . . . . . Overload Shots . | . . . . . . . . . . . . Overflow Damage 198 | . . . 140 . 45 . . . . 13 . Projectiles 33 | . . . . . 20 . . . . 13 . Explosions 165 | . . . 140 . 25 . . . . . . Melee . | . . . . . . . . . . . . Knockbacks 2 | . . . . . . . . . . . 2 Impact . | . . . . . . . . . . . . Kinetic 1 | . . . . . . . . . . . 1 Secondary 1 | . . . . . . . . . . . 1 Self-Inflicted Damage 349 | . . . . . 47 . . . 246 56 . Shots 4 | . . . . . 1 . . . 3 . . Rammed 3 | . . . . . 1 . . . 1 . 1 Targets Rammed 3 | . . . . . 1 . . . 1 . 1 Kicked . | . . . . . . . . . . . . Crushed . | . . . . . . . . . . . . Highest Temperature 504 | . 134 173 102 3 237 504 . . 128 133 356 Average Temperature 63 | . 48 46 52 2 28 260 . . 68 52 142 Received Heat Transfer 1715 | . 147 309 135 . 48 129 108 18 109 72 640 Effects 4 | . . . . . . 4 . . . . . Shutdowns 1 | . . . . . . 1 . . . . . Interference 3 | . . . . . . 3 . . . . . Siege Activations . | . . . . . . . . . . . . Robots Corrupted . | . . . . . . . . . . . . Combat Hostiles . | . . . . . . . . . . . . Parts Fried . | . . . . . . . . . . . . Impact Corruptions . | . . . . . . . . . . . . Robots Melted . | . . . . . . . . . . . . Combat Hostiles . | . . . . . . . . . . . . Parts Melted 6 | . 1 1 3 . 1 . . . . . . Heat Transferred 5254 | . 425 1896 1532 . 1116 111 . . 100 74 . Parts Sabotaged . | . . . . . . . . . . . . Parts Stolen . | . . . . . . . . . . . . Parts Stripped . | . . . . . . . . . . . . Power Chain Reactions . | . . . . . . . . . . . . Alert | -11 -10 -9 -8 -7 -6 -5 -5 -5 -4 -4 -3 ------- Run | Yrd Mat Mat Mat Fac Fac Fac Upp Upp Fac Ext Res Peak Influence 546 | . 180 478 546 163 265 267 . . 472 510 148 Initial 231 | . . 76 185 163 79 100 . . 50 231 148 Average 254 | . 86 294 436 163 152 122 . . 190 304 95 Maximum Alert Level 2 | . . 2 2 . 1 1 . . 2 2 . Low Security (%) 39 | . 100 21 . 100 74 89 . . 56 . 100 Level 1 42 | . . 53 46 . 25 10 . . 34 82 . Level 2 18 | . . 24 53 . . . . . 9 17 . Level 3 . | . . . . . . . . . . . . Level 4 . | . . . . . . . . . . . . Level 5 . | . . . . . . . . . . . . High Security . | . . . . . . . . . . . . Max Security . | . . . . . . . . . . . . Squads Dispatched 10 | . 2 1 2 . 3 1 . . . 1 . Investigation 3 | . . 1 1 . . . . . . 1 . Extermination 1 | . . . . . 1 . . . . . . Reinforcement 6 | . 2 . 1 . 2 1 . . . . . Assault . | . . . . . . . . . . . . Garrison . | . . . . . . . . . . . . Intercept . | . . . . . . . . . . . . Searches Triggered . | . . . . . . . . . . . . Construction Impeded 1 | . . . . . 1 . . . . . . Haulers Reinforced . | . . . . . . . . . . . . Active Scanning Responses . | . . . . . . . . . . . . Cargo Convoy Interrupts . | . . . . . . . . . . . . Stealth | -11 -10 -9 -8 -7 -6 -5 -5 -5 -4 -4 -3 --------- Run | Yrd Mat Mat Mat Fac Fac Fac Upp Upp Fac Ext Res Distress Signals 8 | . 1 . 3 . . . . . 2 . 2 Communications Jammed . | . . . . . . . . . . . . Distress Signals . | . . . . . . . . . . . . Times Spotted 166 | . 13 31 13 . 8 19 14 3 29 20 16 Peak Tracking Total 15 | . 5 6 4 . 3 12 8 3 15 7 12 Tactical Retreats 29 | . 1 2 1 . 4 5 4 . 6 3 3 Traps | -11 -10 -9 -8 -7 -6 -5 -5 -5 -4 -4 -3 ------- Run | Yrd Mat Mat Mat Fac Fac Fac Upp Upp Fac Ext Res Traps Triggered 3 | . . . . . 1 . . . . 2 . Indirectly . | . . . . . . . . . . . . Trap Hack Attempts . | . . . . . . . . . . . . Triggered . | . . . . . . . . . . . . Disarmed . | . . . . . . . . . . . . Reprogrammed . | . . . . . . . . . . . . Reused . | . . . . . . . . . . . . Traps Extracted . | . . . . . . . . . . . . Installed . | . . . . . . . . . . . . Triggered 2 | . . . . . . . 2 . . . . Machines | -11 -10 -9 -8 -7 -6 -5 -5 -5 -4 -4 -3 ---------- Run | Yrd Mat Mat Mat Fac Fac Fac Upp Upp Fac Ext Res Machines Disabled 20 | . . . 6 . 9 . . . 4 1 . Max in Single Turn 9 | . . . 6 . 9 . . . 4 1 . Garrison Access 1 | . . . . . . 1 . . . . . Machines Repaired . | . . . . . . . . . . . . Machines Dismantled . | . . . . . . . . . . . . Machines Sabotaged . | . . . . . . . . . . . . Overloaded Fab Kills . | . . . . . . . . . . . . Hacking | -11 -10 -9 -8 -7 -6 -5 -5 -5 -4 -4 -3 --------- Run | Yrd Mat Mat Mat Fac Fac Fac Upp Upp Fac Ext Res Machines Accessed 30 | . . 9 4 1 8 1 . . 2 5 . Terminals 19 | . . 5 3 1 3 . . . 2 5 . Fabricators 4 | . . . . . 4 . . . . . . Repair Stations 3 | . . 2 1 . . . . . . . . Recycling Units . | . . . . . . . . . . . . Scanalyzers 3 | . . 2 . . 1 . . . . . . Garrison Access 1 | . . . . . . 1 . . . . . Total Hacks 89 | . . 33 8 3 26 2 . . 3 14 . Successful 47 | . . 23 2 . 15 1 . . 1 5 . Failed 42 | . . 10 6 3 11 1 . . 2 9 . Catastrophic 9 | . . 1 . 1 2 . . . 2 3 . Database Lockouts . | . . . . . . . . . . . . Manual 26 | . . 14 4 1 5 . . . 2 . . Terminals 46 | . . 17 4 3 5 . . . 3 14 . Fabricators 9 | . . . . . 9 . . . . . . Repair Stations 9 | . . 5 4 . . . . . . . . Recycling Units . | . . . . . . . . . . . . Scanalyzers 23 | . . 11 . . 12 . . . . . . Garrison Access 2 | . . . . . . 2 . . . . . Terminal Hacks 11 | . . 4 . . 1 . . . 1 5 . Record 2 | . . . . . . . . . . 2 . Open Door 4 | . . . . . . . . . 1 3 . Alert Level 2 | . . 2 . . . . . . . . . Unreport Threat 2 | . . 1 . . 1 . . . . . . Locate Traps 1 | . . 1 . . . . . . . . . Fabricator Hacks 3 | . . . . . 3 . . . . . . Network Status 1 | . . . . . 1 . . . . . . Load Schematic 1 | . . . . . 1 . . . . . . Build 1 | . . . . . 1 . . . . . . Repair Station Hacks 6 | . . 4 2 . . . . . . . . Scan Component 3 | . . 2 1 . . . . . . . . Repair 3 | . . 2 1 . . . . . . . . Recycling Unit Hacks . | . . . . . . . . . . . . Scanalyzer 22 | . . 11 . . 11 . . . . . . Insert Component 10 | . . 5 . . 5 . . . . . . Analyze 12 | . . 6 . . 6 . . . . . . Garrison Access Hacks 1 | . . . . . . 1 . . . . . Seal Access 1 | . . . . . . 1 . . . . . Unauthorized Hacks 4 | . . 4 . . . . . . . . . Terminals 4 | . . 4 . . . . . . . . . Botnet 4 | . . 4 . . . . . . . . . Fabricators . | . . . . . . . . . . . . Repair Stations . | . . . . . . . . . . . . Recycling Units . | . . . . . . . . . . . . Scanalyzers . | . . . . . . . . . . . . Garrison Access . | . . . . . . . . . . . . Data Cores Recovered 1 | . . 1 . . . . . . . . . Used . | . . . . . . . . . . . . Hacking Detections 25 | . . 9 4 1 7 . . . 1 3 . Full Trace Events 4 | . . 2 1 . . . . . . 1 . Feedback Events . | . . . . . . . . . . . . Feedback Blocked . | . . . . . . . . . . . . Robot Schematics Acquired . | . . . . . . . . . . . . Robots Built . | . . . . . . . . . . . . Authchips . | . . . . . . . . . . . . Time . | . . . . . . . . . . . . Total Robot Build Rating . | . . . . . . . . . . . . Part Schematics Acquired 10 | . . 5 . . 5 . . . . . . Parts Built 1 | . . . . . 1 . . . . . . Authchips . | . . . . . . . . . . . . Time 64 | . . . . . 64 . . . . . . Total Part Build Rating 8 | . . . . . 8 . . . . . . Parts Repaired 3 | . . 2 1 . . . . . . . . Time 84 | . . 52 32 . . . . . . . . Parts Recycled . | . . . . . . . . . . . . Recycled Matter . | . . . . . . . . . . . . Retrieved Matter . | . . . . . . . . . . . . Retrieved Components . | . . . . . . . . . . . . Parts Scanalyzed 10 | . . 5 . . 5 . . . . . . Part Schematics Acquired 10 | . . 5 . . 5 . . . . . . Parts Damaged . | . . . . . . . . . . . . Bothacking | -11 -10 -9 -8 -7 -6 -5 -5 -5 -4 -4 -3 ------------ Run | Yrd Mat Mat Mat Fac Fac Fac Upp Upp Fac Ext Res Used RIF Installer . | . . . . . . . . . . . . Robots Hacked . | . . . . . . . . . . . . Non-combat . | . . . . . . . . . . . . Combat . | . . . . . . . . . . . . Robot Hacks Applied . | . . . . . . . . . . . . Relay Couplers Released . | . . . . . . . . . . . . Fabnet Peak Effective % . | . . . . . . . . . . . . Robots Rewired 3 | . . . . . . . . . 1 2 . Allies Hacked 1 | . . . . . . . . . 1 . . Hacks Repelled . | . . . . . . . . . . . . Allies | -11 -10 -9 -8 -7 -6 -5 -5 -5 -4 -4 -3 -------- Run | Yrd Mat Mat Mat Fac Fac Fac Upp Upp Fac Ext Res Total Allies 6 | . . . . . . . . . 1 5 . Largest Group 4 | . . . . . . . . . 1 4 . Highest-Rated Group 167 | . . . . . . . . . 49 167 . Highest-Rated Ally 49 | . . . . . . . . . 49 46 . Total Orders 2 | . . . . . . . . . . 2 . GUARD 2 | . . . . . . . . . . 2 . Ally Attacks 37 | . . . . . . . . . . 37 . Total Damage 949 | . . . . . . . . . . 949 . Kills 6 | . . . . . . . . . . 6 . Allies Corrupted . | . . . . . . . . . . . . Allies Melted . | . . . . . . . . . . . . Intel | -11 -10 -9 -8 -7 -6 -5 -5 -5 -4 -4 -3 ------- Run | Yrd Mat Mat Mat Fac Fac Fac Upp Upp Fac Ext Res Robot Analysis Total . | . . . . . . . . . . . . Derelict Logs Recovered 1 | . . . . . . . 1 . . . . Drone Launches . | . . . . . . . . . . . . Drone Recoveries . | . . . . . . . . . . . . Exploration | -11 -10 -9 -8 -7 -6 -5 -5 -5 -4 -4 -3 ------------- Run | Yrd Mat Mat Mat Fac Fac Fac Upp Upp Fac Ext Res Turns Passed 3536 | . 204 745 502 17 448 215 467 27 216 540 155 Spaces Moved 4678 | 1 142 594 316 43 1031 506 751 51 391 715 137 Core 235 | . . 7 . . . 2 . . 47 95 84 Treads . | . . . . . . . . . . . . Legs 22 | 1 21 . . . . . . . . . . Wheels 364 | . . 50 218 . . . . . 2 43 51 Hover 660 | . 121 537 . . . . . . . . 2 Flight 3397 | . . . 98 43 1031 504 751 51 342 577 . Fastest Speed 20 | 120 56 48 26 23 20 20 27 35 35 32 50 Average Speed 39 | 120 72 57 77 23 20 25 30 47 38 45 77 Slowest Speed 550 | 120 120 200 435 23 100 200 115 195 115 550 200 Overloaded Moves . | . . . . . . . . . . . . Propulsion Burnouts . | . . . . . . . . . . . . Robots Hopped 36 | . . . . . 14 6 8 1 4 3 . Cave-ins Triggered . | . . . . . . . . . . . . Exploration Rate (%) 28 | 2 31 66 29 1 26 13 73 10 16 67 6 Regions Visited 11 Branch Regions 3 Pre-discovered Areas 1 | . . . . . . . 1 . . . . Known Exits Taken 8 | . . 1 1 1 1 . 1 1 1 1 . Unknown Exits Taken 3 | 1 1 . . . . 1 . . . . . Scrap Searched 3 | . . . . . . . 2 1 . . . Spaces Dug . | . . . . . . . . . . . . Terrain Destroyed 96 | . . . 25 . 22 6 . . 35 7 1 Melee . | . . . . . . . . . . . . Projectile 19 | . . . . . 1 6 . . 4 7 1 AOE 77 | . . . 25 . 21 . . . 31 . . Terrain Rammed 1 | . . . . . . . . . . 1 . Walls Destroyed . | . . . . . . . . . . . . Machines Disabled 1 | . . . . . . . . . . 1 . Actions | -11 -10 -9 -8 -7 -6 -5 -5 -5 -4 -4 -3 --------- Run | Yrd Mat Mat Mat Fac Fac Fac Upp Upp Fac Ext Res Total 5970 | . 205 885 512 45 1218 575 984 52 436 894 164 Wait 768 | . 10 187 104 . 119 50 225 . . 70 3 Move 4602 | . 141 593 315 42 1004 495 736 48 382 709 137 Hop 29 | . . . . . 12 4 6 1 4 2 . Pick Up 63 | . 11 16 15 . 5 1 5 . 4 2 4 Fast Attach 56 | . 2 6 5 . 4 3 1 1 11 21 2 Attach 50 | . 3 5 9 1 4 8 5 1 6 3 5 Detach 15 | . . . . . 2 3 2 1 4 3 . Swap 33 | . 6 10 6 . 7 . . . . 4 . Drop 65 | . 12 11 15 . 8 1 4 . 4 10 . Fire 212 | . 20 57 43 . 34 10 . . 15 21 12 Melee . | . . . . . . . . . . . . Ram 4 | . . . . . 1 . . . 1 1 1 Kick . | . . . . . . . . . . . . Crush . | . . . . . . . . . . . . Escape Stasis 48 | . . . . . 18 . . . . 30 . Rewire 23 | . . . . . . . . . 5 18 . Trap . | . . . . . . . . . . . . Miscellaneous 2 | . . . . 2 . . . . . . . Route ------- -11/Scrapyard -10/Materials -9/Materials (discovered 3 exits: *Mat / [*Min] / *Sto) -8/Materials -7/Factory -6/Factory (discovered 2 exits: *Fac / *Low) -5/Factory (discovered 2 exits: *Fac / [*Upp]) -5/Upper Caves -5/Upper Caves -4/Factory (discovered 2 exits: *Ext x2) -4/Extension (discovered 2 exits: *Res / *Cet) -3/Research History --------- Turn | Location | Event 1 | -11/Scrapyard | Discovered new exit (range 0) 1 | -11/Scrapyard | Entered Materials 138 | -10/Materials | Discovered new exit (range 13) 205 | -10/Materials | Entered another Materials area 205 | -9/Materials | Evolved 2 slots: Propulsion x2 306 | -9/Materials | Build established: Mutant 630 | -9/Materials | Repaired Hover Unit 657 | -9/Materials | Repaired Hover Unit 753 | -9/Materials | Discovered new exit (range 8) 768 | -9/Materials | Discovered new exit (range 9) 826 | -9/Materials | Identified exit to Storage 836 | -9/Materials | Destroyed 7 combat bots 936 | -9/Materials | Discovered new exit (range 6) 941 | -9/Materials | Identified exit to Materials 950 | -9/Materials | Entered another Materials area 950 | -8/Materials | Evolved 2 slots: Utility x2 1028 | -8/Materials | Lost 3 parts (1p1u1w) 1069 | -8/Materials | Repaired Arm. Wheel 1440 | -8/Materials | Discovered new exit (range 11) 1451 | -8/Materials | Identified exit to Factory 1452 | -8/Materials | Entered Factory 1452 | -7/Factory | Evolved 2 slots: Propulsion x1, Utility x1 1464 | -7/Factory | Discovered new exit (range 10) 1467 | -7/Factory | Identified exit to Factory 1469 | -7/Factory | Entered another Factory area 1469 | -6/Factory | Evolved 2 slots: Power x1, Propulsion x1 1502 | -6/Factory | Discovered new exit (range 6) 1503 | -6/Factory | Identified exit to Lower Caves 1560 | -6/Factory | Spotted B-75 Beast 1684 | -6/Factory | Fabricated Nova Cannon (x1) 1914 | -6/Factory | Discovered new exit (range 13) 1917 | -6/Factory | Identified exit to Factory 1917 | -6/Factory | Entered another Factory area 1917 | -5/Factory | Evolved 2 slots: Utility x2 1923 | -5/Factory | Discovered new exit (range 8) 1925 | -5/Factory | Identified exit to Factory 2084 | -5/Factory | Core integrity fell below 50% 2116 | -5/Factory | Lost 14 parts (2p4n6u2w) 2122 | -5/Factory | Discovered new exit (range 16) 2132 | -5/Factory | Entered Upper Caves 2211 | -5/Upper Caves | Attracted the attention of an 0b10 checkpoint 2574 | -5/Upper Caves | Core integrity fell below 20% 2575 | -5/Upper Caves | Lost 4 parts (1p2n1u) 2598 | -5/Upper Caves | Discovered new exit (range 3) 2599 | -5/Upper Caves | Identified exit to Upper Caves 2599 | -5/Upper Caves | Entered another Upper Caves area 2607 | -5/Upper Caves | Discovered exit to Factory (range 7) 2626 | -5/Upper Caves | Entered Factory 2626 | -4/Factory | Evolved 2 slots: Weapon x2 2665 | -4/Factory | Discovered new exit (range 12) 2734 | -4/Factory | Lost 3 parts (1n2u) 2828 | -4/Factory | Lost 5 parts (4u1w) 2829 | -4/Factory | Core integrity fell below 50% 2841 | -4/Factory | Discovered new exit (range 6) 2842 | -4/Factory | Identified exit to Extension 2842 | -4/Factory | Entered Extension 2927 | -4/Extension | Spotted B-86 Titan 2966 | -4/Extension | Rescued a captive Derelict 3054 | -4/Extension | Lost 3 parts (1p1u1w) 3161 | -4/Extension | Rescued a captive Derelict 3165 | -4/Extension | Rescued a captive Derelict 3271 | -4/Extension | Spotted B-86 Titan 3278 | -4/Extension | Core integrity fell below 20% 3293 | -4/Extension | Lost 4 allies 3309 | -4/Extension | Lost 7 parts (2p3n2u) 3315 | -4/Extension | Discovered new exit (range 16) 3315 | -4/Extension | Discovered new exit (range 15) 3339 | -4/Extension | Identified exit to Research 3352 | -4/Extension | Identified exit to Cetus 3382 | -4/Extension | Entered Research 3382 | -3/Research | Evolved 2 slots: Utility x2 3414 | -3/Research | Spotted B-86 Titan 3501 | -3/Research | Core integrity fell below 50% 3514 | -3/Research | Spotted B-86 Titan 3521 | -3/Research | Lost 14 parts (3p3n3u5w) 3525 | -3/Research | Core integrity fell below 20% 3537 | -3/Research | Destroyed by B-86 Titan with Hardcell Cannon Last Messages --------------- 03496_ Slug penetrates Wall. 03498_ Acquired Adv. System Shield. 03500_ Knocked back. 03500_ Penetrated by Slug. 03501_ U-05 Engineer builds a Wall. 03508_ Catalytron disabled. 03508_ Slug penetrates Catalytron. 03508_ Penetrated by Slug. 03508_ Acquired Adv. Target Analyzer. 03511_ Penetrated by Slug. 03521_ Acquired 2 matter. 03524_ Penetrated by Slug. 03526_ B-86 Titan activates siege mode. 03530_ Acquired Com. HERF Cannon. 03531_ Slug penetrates Door. 03531_ Slug penetrates Wall. 03533_ Adv. Target Analyzer destroyed. 03536_ P-80 Master suffers critical hit (Burn). 03537_ P-80 Master resets G-67 Veteran, system corruption cleaned. Map ----- +----------------------------------------------------+ | ????# #?????????????????????????? | | ????# ##????????????????????????? | | ????# "#????????????????????????? | | ????# """ """ ##????????????????????????? | | ????# """ "" #?????????????????????????? | | ????# """ " #?????????????????????????? | | ???? #?????????????????????????? | | ??? #?????????????????????????? | | ?? #?????????????????????????? | | ??? #?????????????????????????? | | ??????##+####### # #?????????????????????????? | | ???????????????# " #?????????????????????????? | | ???????????????###; #?????????????????????????? | | ?????????????????#; #?????????????????????????? | | ??????????????????; #?????????????????????????? | | ????????"" ###### #?????????????????????????? | | ????????"" / s#?????????????????????????? | | ????? #######g;s####??????????????????????? | | ????????????????# ss #??????????????????????? | | ????????????????# p #??????????????????????? | | ????????????????# #??????????????????????? | | ????????????????# #??????????????????????? | | ????????????????# #??????????????????????? | | ????????????????# #??????????????????????? | | ????????????????# #??????????????????????? | | ????????????????# @#??????????????????????? | | ????????????????###########??????????????????????? | | ?????????????????????????????????????????????????? | | ?????????????????????????????????????????????????? | | ?????????????????????????????????????????????????? | | ?????????????????????????????????????????????????? | | ?????????????????????????????????????????????????? | | ?????????????????????????????????????????????????? | | ?????????????????????????????????????????????????? | | ?????????????????????????????????????????????????? | | ?????????????????????????????????????????????????? | | ?????????????????????????????????????????????????? | | ?????????????????????????????????????????????????? | | ?????????????????????????????????????????????????? | | ?????????????????????????????????????????????????? | | ?????????????????????????????????????????????????? | | ?????????????????????????????????????????????????? | | ?????????????????????????????????????????????????? | | ?????????????????????????????????????????????????? | | ?????????????????????????????????????????????????? | | ?????????????????????????????????????????????????? | | ?????????????????????????????????????????????????? | | ?????????????????????????????????????????????????? | | ?????????????????????????????????????????????????? | | ?????????????????????????????????????????????????? | +----------------------------------------------------+ Best States ------------- Heat Dissipation 81 Energy Generation 43 Energy Capacity 550 Matter Stores 800 Matter Capacity 800 Sight Range 16 Robot Scan Range 16 Terrain Scan Density 10 Jamming Range 16 Power Amplification 20 Armor Coverage 150 Propulsion Shielding 66 Evasion (%) 74 Target Analysis 8 Matter Filtering 50 Offensive Hacking 20 Item Schematics ----------------- Spread Laser | -9/Materials | Scanalyzed Hrd. Light Armor Plating | -9/Materials | Scanalyzed Hacking Suite | -9/Materials | Scanalyzed Imp. Assault Rifle | -9/Materials | Scanalyzed ECM Suite | -9/Materials | Scanalyzed Nova Cannon | -6/Factory | Scanalyzed Nuclear Pulse Thruster | -6/Factory | Scanalyzed Cesium-ion Thruster | -6/Factory | Scanalyzed Adv. Targeting Computer | -6/Factory | Scanalyzed Imp. Reaction Control System | -6/Factory | Scanalyzed Robot Schematics ------------------ None Fabricated ------------ Nova Cannon | x1 | -6/Factory | Preloaded Alien Tech Used ----------------- None Achievements -------------- None Challenges ------------ None Game ------ Seed RestorationXenonRouter Manual? 0 Play Time 01:02:49 Cumulative 171.0 hours Start 2024.05.14 @ 11:54:21 End 2024.05.14 @ 15:57:15 Sessions 3 Manual Loads 0 Difficulty Rogue Special Mode None Game No. 323 Rogue 323 Adventurer 0 Explorer 0 Win Type - Total 0 Types 0/0/0/0/0/0/0/0/0 Lore% 41 Gallery% 53 Achievement% 39 Wizard Run 0 Options --------- Layout 1 ASCII 0 Keyboard 0 Movement Mouse Keybinds 0 Fullscreen 1 Font 24/Smallcaps Map View 50x40 Zoom Use 0% Tactical HUD 1 Map Filters NONE Filters NONE Steam 1 RUN: 89ccd134-e3df-4405-9f80-228786794089